bitfinex/quotes_ETHUSD_20250608
["timestamp","ask_amount","ask_price","bid_price","bid_amount"]
[1749399241413,16.09447827,2522.4,2522.3,16.0]
[1749399242508,12.09447827,2522.4,2522.3,16.0]
[1749399242717,1.67,2522.4,2522.3,16.0]
[1749399242913,8.142,2522.4,2522.3,16.0]
[1749399243210,1.671,2522.4,2522.3,16.0]
[1749399243417,17.13,2522.9,2522.4,16.7905]
[1749399243604,12.10584969,2522.8,2522.7,16.0]
[1749399244113,3.96400681,2522.7,2522.2,21.51069697]
[1749399244319,3.96440689,2522.5,2522.2,21.51069697]
[1749399244522,6.472,2522.4,2522.2,21.51069697]
[1749399245149,6.472,2522.4,2522.1,16.0]
[1749399245284,6.472,2522.4,2522.2,5.51069697]
[1749399245482,10.43653397,2522.4,2522.3,16.0]
[1749399245685,4.76289918,2522.5,2522.3,16.0]
[1749399245881,12.10747827,2522.4,2522.3,16.0]
[1749399247115,3.96471489,2522.3,2522.0,6.30119697]
[1749399247314,6.472,2522.2,2522.1,16.0]
[1749399247491,0.7985,2522.8,2522.2,19.96472877]
[1749399247823,8.141,2522.7,2522.5,5.51069697]
[1749399248117,3.96416395,2522.6,2522.5,21.51069697]
[1749399248938,8.141,2522.7,2522.0,16.7905]
[1749399249088,1.2105164,2522.5,2522.0,16.7905]
[1749399249289,10.44059061,2522.4,2522.0,16.7905]
[1749399250415,10.44059061,2522.4,2522.2,16.0]
[1749399251463,6.476,2522.4,2522.3,21.51069697]
[1749399251947,3.96431687,2522.6,2522.4,16.0]
[1749399252147,6.478,2522.5,2522.3,5.51069697]
[1749399253231,10.44245426,2522.5,2522.3,5.51069697]
[1749399256732,6.478,2522.5,2522.3,5.51069697]
[1749399256911,10.4423278,2522.5,2522.4,16.0]
[1749399258340,11.90574408,2522.5,2522.4,16.0]
[1749399258544,3.96449576,2522.4,2522.2,16.0]
[1749399258742,6.474,2522.3,2522.2,16.0]
[1749399265451,8.147,2522.3,2522.2,16.8239]
[1749399267255,8.147,2522.3,2522.0,4.78899948]
[1749399267457,8.147,2522.3,2522.2,5.51069697]
[1749399269946,13.32279407,2522.3,2522.0,0.8239]
[1749399270150,13.32279407,2522.3,2521.9,21.51069697]
[1749399271428,3.96501939,2522.1,2521.7,5.91649625]
[1749399271629,6.475,2522.0,2521.8,16.0]
[1749399272627,10.4401245,2522.0,2521.8,16.0]
[1749399272971,6.475,2522.0,2521.8,16.0]
[1749399273633,10.44012064,2522.0,2521.8,16.0]
[1749399273861,6.475,2522.0,2521.8,16.0]
[1749399274084,10.44016582,2522.0,2521.8,16.0]
[1749399274491,6.475,2522.0,2521.9,5.51069697]
[1749399274996,6.475,2522.0,2521.9,21.51069697]
[1749399275298,0.8191,2522.4,2522.1,16.0]
[1749399275497,8.149,2522.3,2522.2,21.51069697]
[1749399275865,1.677,2522.3,2522.2,21.51069697]
[1749399276189,8.15,2522.3,2522.2,21.51069697]
[1749399276950,1.678,2522.3,2522.2,5.51069697]
[1749399277155,8.154,2522.3,2522.2,5.51069697]
[1749399278189,8.153,2522.3,2522.2,5.51069697]
[1749399278389,3.96436983,2522.5,2522.2,5.51069697]
[1749399278695,8.152,2522.4,2522.2,5.51069697]
[1749399278993,0.87264401,2522.5,2522.2,5.51069697]
[1749399279293,0.87264401,2522.5,2522.1,19.96485738]
[1749399279294,1.678,2522.3,2522.1,19.96485738]
[1749399279590,6.473,2522.2,2522.1,19.96485738]
[1749399280257,1.678,2522.3,2522.1,19.96485738]
[1749399280598,6.472,2522.2,2522.1,19.96485738]
[1749399280782,8.15,2522.2,2522.1,3.96493256]
[1749399280984,8.15,2522.2,2522.1,19.96493256]
[1749399281791,8.15,2522.2,2522.1,25.47562953]
[1749399284390,3.96392621,2522.8,2522.2,16.8252]
[1749399284578,1.677,2522.7,2522.5,5.51069697]
[1749399284783,1.677,2522.7,2522.5,21.51069697]
[1749399284784,6.471,2522.6,2522.5,21.51069697]
[1749399286078,6.471,2522.6,2522.5,16.0]
[1749399286605,12.04275778,2522.6,2522.5,16.0]
[1749399286813,12.80205778,2522.6,2522.5,16.0]
[1749399290013,5.57175778,2522.6,2522.5,16.0]
[1749399290177,13.71775778,2522.6,2522.5,16.0]
[1749399290711,14.51845778,2522.6,2522.5,16.0]
[1749399291318,15.06845778,2522.6,2522.5,16.0]
[1749399296536,14.50845778,2522.6,2522.5,16.0]
[1749399297600,15.05845778,2522.6,2522.5,16.0]
[1749399298724,3.96488829,2522.2,2522.0,16.0]
[1749399298917,6.461,2522.1,2522.0,16.0]
[1749399300901,8.134,2522.1,2522.0,16.0]
[1749399302445,8.134,2522.1,2522.0,19.96510705]
[1749399302599,8.132,2522.1,2522.0,19.96510705]
[1749399303834,6.37247177,2522.6,2522.1,3.96480079]
[1749399303835,3.9641659,2522.6,2522.1,3.96480079]
[1749399304050,12.09632111,2522.5,2522.4,21.51069697]
[1749399304218,3.96432111,2522.5,2522.4,21.51069697]
[1749399304423,12.09632111,2522.5,2522.4,21.51069697]
[1749399305323,8.131,2522.5,2522.4,21.51069697]
[1749399305511,12.09532111,2522.5,2522.4,21.51069697]
[1749399307891,12.09232111,2522.5,2522.4,21.51069697]
[1749399308645,12.09232111,2522.5,2522.4,16.0]
[1749399309107,15.46637062,2522.5,2522.4,16.0]
[1749399310064,16.21767062,2522.5,2522.4,16.0]
[1749399310433,3.96480851,2522.2,2522.0,5.51069697]
[1749399310762,3.96521087,2522.0,2521.6,5.51069697]
[1749399310983,12.09528642,2521.9,2521.6,5.51069697]
[1749399311120,6.457,2521.8,2521.7,16.0]
[1749399311316,6.457,2521.8,2521.6,5.51069697]
[1749399311790,10.42247856,2521.8,2521.6,5.51069697]
[1749399312461,6.457,2521.8,2521.6,5.51069697]
[1749399315593,6.457,2521.8,2521.3,6.29469697]
[1749399315594,12.02853363,2521.8,2521.3,6.29469697]
[1749399315809,12.02855482,2521.8,2521.5,5.51069697]
[1749399316816,12.02857171,2521.8,2521.5,5.51069697]
[1749399318360,8.06304932,2521.8,2521.7,21.51069697]
[1749399318564,6.457,2521.8,2521.7,21.51069697]
[1749399318987,10.42242152,2521.8,2521.7,21.51069697]
[1749399319859,6.457,2521.8,2521.7,21.51069697]
[1749399321014,8.126,2521.8,2521.7,22.31709697]
[1749399322617,12.09142152,2521.8,2521.7,22.31709697]
[1749399322770,12.09142152,2521.8,2521.7,21.51069697]
[1749399323000,13.09493123,2521.8,2521.7,21.51069697]
[1749399323915,3.9645505,2522.4,2521.7,21.51069697]
[1749399324098,3.96519039,2522.0,2521.9,5.51069697]
[1749399324299,10.41719039,2522.0,2521.9,5.51069697]
[1749399325146,1.673,2522.0,2521.9,5.51069697]
[1749399325456,8.124,2522.0,2521.9,5.51069697]
[1749399326453,8.124,2522.0,2521.8,5.51069697]
[1749399326454,3.9653633,2521.9,2521.8,5.51069697]
[1749399328735,3.96555084,2521.8,2521.7,16.0]
[1749399329054,6.449,2521.8,2521.7,16.0]
[1749399329902,8.113,2521.8,2521.7,16.0]
[1749399331052,12.07842152,2521.8,2521.7,16.0]
[1749399331253,3.96558197,2521.7,2521.5,5.51069697]
[1749399331434,3.96558197,2521.7,2521.3,0.8305]
[1749399331435,3.96505168,2522.1,2521.7,6.34119697]
[1749399331605,8.12,2522.0,2521.8,16.0]
[1749399331803,8.12,2522.0,2521.9,21.51069697]
[1749399333639,12.08510705,2522.0,2521.9,21.51069697]
[1749399335259,12.08510705,2522.0,2521.9,16.0]
[1749399335561,17.69011325,2522.0,2521.9,16.0]
[1749399337254,12.121,2522.0,2521.9,21.51069697]
[1749399337754,16.08610705,2522.0,2521.9,21.51069697]
[1749399339314,16.08710705,2522.0,2521.9,21.51069697]
[1749399339741,4.0,2522.0,2521.9,21.51069697]
[1749399339924,12.121,2522.0,2521.9,21.51069697]
[1749399340218,16.08610705,2522.0,2521.9,21.51069697]
[1749399341554,12.12,2522.0,2521.9,21.51069697]
[1749399343162,4.69294951,2522.5,2522.0,16.0]
[1749399343348,4.0,2522.1,2521.9,16.0]
[1749399343535,4.0,2522.1,2521.9,19.96526428]
[1749399343536,6.453,2522.0,2521.9,19.96526428]
[1749399343743,6.453,2522.0,2521.9,20.72216428]
[1749399344226,6.453,2522.0,2521.9,0.7569]
[1749399344425,6.453,2522.0,2521.9,22.26759697]
[1749399345661,6.453,2522.0,2521.9,26.23286125]
[1749399346263,3.96463514,2522.4,2521.9,26.23286125]
[1749399346566,1.665,2522.0,2521.9,20.72216428]
[1749399347159,8.117,2522.0,2521.9,20.72216428]
[1749399347357,8.117,2522.0,2521.9,16.7569]
[1749399347558,8.117,2522.0,2521.9,20.72216428]
[1749399347857,8.117,2522.0,2521.9,26.23286125]
[1749399348358,8.117,2522.0,2521.9,22.26759697]
[1749399348869,8.115,2522.0,2521.9,26.23278519]
[1749399350653,8.115,2522.0,2521.9,22.26759697]
[1749399350848,8.115,2522.0,2521.9,21.51069697]
[1749399353280,8.115,2522.0,2521.9,25.47596125]
[1749399353648,8.111,2522.0,2521.9,25.47596125]
[1749399354751,1.665,2522.0,2521.9,25.47596125]
[1749399354973,21.09810096,2522.7,2522.2,16.0]
[1749399354974,21.09809333,2522.7,2522.2,16.0]
[1749399355152,8.11,2522.6,2522.4,16.0]
[1749399355481,4.0,2522.5,2522.4,16.0]
[1749399355782,12.108,2522.5,2522.4,22.33559697]
[1749399356004,5.662,2522.5,2522.4,26.30007524]
[1749399356446,12.109,2522.5,2522.4,26.30007524]
[1749399356645,17.134,2522.7,2522.6,19.96416395]
[1749399356853,29.243,2522.7,2522.6,25.47486092]
[1749399357059,29.243,2522.7,2522.6,21.51069697]
[1749399357677,25.243,2522.7,2522.6,21.51069697]
[1749399357972,25.242,2522.7,2522.6,21.51069697]
[1749399359690,25.242,2522.7,2522.6,16.0]
[1749399359911,31.68220729,2522.7,2522.6,16.0]
[1749399360636,25.242,2522.7,2522.6,16.0]
[1749399362422,17.134,2522.7,2522.6,21.51069697]
[1749399362629,25.238,2522.7,2522.6,22.28519697]
[1749399362967,17.134,2522.7,2522.6,22.28519697]
[1749399363210,25.237,2522.7,2522.6,22.28519697]
[1749399366204,25.237,2522.7,2522.6,21.51069697]
[1749399366809,25.234,2522.7,2522.6,21.51069697]
[1749399366982,25.234,2522.7,2522.6,25.47486092]
[1749399368159,25.235,2522.7,2522.6,25.47486092]
[1749399370382,25.233,2522.7,2522.6,25.47486092]
[1749399370584,17.134,2522.7,2522.6,26.24866092]
[1749399370778,23.581,2522.7,2522.6,26.24866092]
[1749399382640,23.574,2522.7,2522.6,26.24866092]
[1749399385140,4.71703773,2523.3,2522.9,16.0]
[1749399385344,8.1,2523.2,2523.1,21.51069697]
[1749399385509,12.1,2523.2,2523.1,21.51069697]
[1749399385710,4.0,2523.2,2523.1,21.51069697]
[1749399386118,16.0592213,2523.2,2523.1,16.0]
[1749399386306,3.96411569,2522.7,2522.4,16.0]
[1749399386511,8.098,2522.6,2522.3,5.51069697]
[1749399386744,8.098,2522.6,2522.4,16.0]
[1749399387364,8.098,2522.6,2522.5,5.51069697]
[1749399388068,12.06228001,2522.6,2522.3,21.51069697]
[1749399388228,12.06228001,2522.6,2522.2,16.0]
[1749399388229,4.78514454,2522.5,2522.2,16.0]
[1749399388428,10.40349787,2522.4,2522.2,16.0]
[1749399388665,6.439,2522.4,2522.2,16.0]
[1749399389570,3.96471292,2522.3,2521.9,5.51069697]
[1749399389741,6.441,2522.2,2522.0,16.0]
[1749399390123,11.22667197,2522.2,2521.9,5.51069697]
[1749399390330,3.96503856,2522.1,2521.7,5.51069697]
[1749399390526,8.099,2522.0,2521.7,5.51069697]
[1749399390762,0.8208,2521.9,2521.5,5.51069697]
[1749399390968,10.40950228,2521.8,2521.5,5.51069697]
[1749399391151,6.444,2521.8,2521.3,5.51069697]
[1749399391362,6.444,2521.8,2521.2,5.51069697]
[1749399391363,3.96602927,2521.5,2521.2,5.51069697]
[1749399391564,8.103,2521.4,2521.0,3.96656512]
[1749399391892,8.103,2521.4,2521.1,5.51069697]
[1749399392026,8.103,2521.4,2521.2,16.0]
[1749399392232,8.103,2521.4,2521.1,5.91225162]
[1749399392649,12.06906256,2521.4,2521.1,5.51069697]
[1749399392849,0.8208,2521.3,2521.2,16.0]
[1749399393212,3.96647369,2521.2,2520.9,5.51069697]
[1749399393350,10.41353836,2521.1,2520.9,5.51069697]
[1749399393732,10.41353836,2521.1,2521.0,16.0]
[1749399394045,11.93362147,2521.1,2520.7,5.51069697]
[1749399394247,11.93362147,2521.1,2520.7,5.90777007]
[1749399394550,11.93362147,2521.1,2520.8,16.0]
[1749399394551,11.93359203,2521.1,2520.8,16.0]
[1749399395236,7.96705766,2521.1,2520.8,16.0]
[1749399395837,11.93359157,2521.1,2520.8,16.0]
[1749399396053,3.96668063,2521.0,2520.7,5.51069697]
[1749399396267,11.19606567,2520.9,2520.5,5.51069697]
[1749399396552,1.659,2520.8,2520.6,16.0]
[1749399396872,6.45,2520.7,2520.6,5.51069697]
[1749399397084,6.45,2520.7,2520.4,5.51069697]
[1749399397374,0.7802,2520.6,2520.2,9.47860305]
[1749399397557,6.45,2520.5,2520.2,5.51069697]
[1749399398166,10.41751724,2520.5,2520.2,5.51069697]
[1749399398345,6.45,2520.5,2520.2,5.51069697]
[1749399398740,6.45,2520.5,2520.3,16.0]
[1749399398936,0.7802,2520.6,2520.3,16.0]
[1749399399153,0.7802,2520.6,2520.5,16.0]
[1749399399351,8.8912,2520.6,2520.5,16.0]
[1749399399563,0.7813,2520.8,2520.5,16.0]
[1749399399763,17.135,2520.9,2520.8,19.9669946]
[1749399400072,29.252,2520.9,2520.8,19.9669946]
[1749399400373,29.252,2520.9,2520.8,16.0]
[1749399400748,33.21883724,2520.9,2520.8,16.0]
[1749399400947,29.21883724,2520.9,2520.8,16.0]
[1749399401253,32.92202096,2520.9,2520.8,16.0]
[1749399402136,36.92202096,2520.9,2520.8,16.0]
[1749399402538,37.47202096,2520.9,2520.8,16.0]
[1749399402743,3.96747037,2520.5,2520.1,21.51069697]
[1749399402938,6.458,2520.4,2520.1,21.51069697]
[1749399403236,1.659,2520.3,2519.9,0.89986548]
[1749399403441,6.461,2520.2,2520.1,19.96795225]
[1749399403662,6.461,2520.2,2520.1,16.0]
[1749399404669,6.461,2520.2,2520.1,25.47879347]
[1749399404870,0.7813,2520.7,2520.2,16.0]
[1749399405072,1.66,2520.6,2520.5,3.96746677]
[1749399405272,21.135,2520.9,2520.8,19.9669946]
[1749399405473,29.265,2520.9,2520.8,19.9669946]
[1749399405674,25.265,2520.9,2520.8,19.9669946]
[1749399405893,25.265,2520.9,2520.8,16.0]
[1749399406412,32.61776724,2520.9,2520.8,16.0]
[1749399406572,28.65093,2520.9,2520.8,16.0]
[1749399406900,26.0463,2520.9,2520.8,16.0]
[1749399407751,25.27,2520.9,2520.8,21.51069697]
[1749399408582,25.27,2520.9,2520.8,25.47769157]
[1749399408800,25.27,2520.9,2520.8,21.51069697]
[1749399409612,25.27,2520.9,2520.8,25.47769157]
[1749399410410,17.135,2520.9,2520.8,25.47769157]
[1749399410576,25.268,2520.9,2520.8,25.47769157]
[1749399411421,25.268,2520.9,2520.8,21.51069697]
[1749399413620,25.268,2520.9,2520.8,25.47769157]
[1749399413921,25.267,2520.9,2520.8,25.47769157]
[1749399414123,18.795,2520.9,2520.8,25.47769157]
[1749399414311,17.135,2520.9,2520.8,25.47769157]
[1749399414624,25.266,2520.9,2520.8,25.47769157]
[1749399415599,25.266,2520.9,2520.8,26.25409157]
[1749399415600,25.267,2520.9,2520.8,26.25409157]
[1749399416727,18.811,2520.9,2520.8,26.25409157]
[1749399417133,25.283,2520.9,2520.8,26.25409157]
[1749399417711,0.8013,2521.5,2521.2,3.96634631]
[1749399417912,8.147,2521.4,2521.3,16.0]
[1749399418324,8.147,2521.4,2521.1,16.0]
[1749399418526,9.04183,2521.4,2520.9,5.51069697]
[1749399418832,8.147,2521.4,2520.9,5.51069697]
[1749399419040,12.11305186,2521.4,2521.0,16.0]
[1749399419538,8.147,2521.4,2521.0,19.9666685]
[1749399419736,8.147,2521.4,2521.1,3.96652233]
[1749399419932,0.8013,2521.5,2521.1,9.4772193]
[1749399420136,1.676,2521.3,2521.1,9.4772193]
[1749399420312,6.475,2521.2,2521.1,25.4772193]
[1749399420732,0.8253,2521.7,2521.4,16.0]
[1749399420906,21.93365283,2521.9,2521.6,5.51069697]
[1749399421134,8.154,2521.8,2521.6,5.51069697]
[1749399421829,1.676,2521.8,2521.6,5.51069697]
[1749399422037,6.478,2521.7,2521.2,6.28589697]
[1749399422233,3.96607503,2521.4,2521.1,16.0]
[1749399422432,6.479,2521.3,2521.1,16.0]
[1749399422631,8.155,2521.2,2521.1,16.0]
[1749399424138,8.155,2521.2,2521.1,19.96652254]
[1749399424439,8.155,2521.2,2521.1,16.0]
[1749399424828,8.155,2521.2,2521.1,19.96652254]
[1749399425659,3.96566005,2521.7,2521.2,3.96634266]
[1749399425832,0.8288,2521.7,2521.4,16.0]
[1749399426039,8.153,2521.6,2521.4,19.96603319]
[1749399426238,8.153,2521.6,2521.4,16.0]
[1749399426549,8.153,2521.6,2521.3,16.0]
[1749399426729,12.11873837,2521.6,2521.2,16.0]
[1749399427131,13.97209439,2521.6,2521.2,16.0]
[1749399428127,3.96595068,2521.5,2521.0,20.79083233]
[1749399428332,6.478,2521.4,2521.0,20.79083233]
[1749399428665,6.478,2521.4,2521.0,19.96662783]
[1749399429042,6.478,2521.4,2521.0,3.96664719]
[1749399429553,6.478,2521.4,2520.8,0.821]
[1749399429554,0.7982,2521.3,2520.8,0.821]
[1749399429869,6.475,2521.2,2520.9,3.96683183]
[1749399430682,6.475,2521.2,2520.8,19.96694444]
[1749399430893,6.475,2521.2,2520.9,19.96674478]
[1749399431047,6.475,2521.2,2521.1,16.0]
[1749399431880,6.475,2521.2,2521.0,16.0]
[1749399432112,6.475,2521.2,2520.9,16.0]
[1749399432394,6.475,2521.2,2520.9,19.96673587]
[1749399432570,6.475,2521.2,2520.9,3.96682808]
[1749399432773,6.475,2521.2,2520.8,16.0]
[1749399432945,6.475,2521.2,2520.9,3.96682885]
[1749399433539,6.475,2521.2,2520.8,19.96692286]
[1749399433842,6.475,2521.2,2520.9,3.9668368]
[1749399434576,6.475,2521.2,2520.9,3.96681592]
[1749399434780,6.475,2521.2,2521.0,16.0]
[1749399436279,0.7982,2521.3,2520.8,0.39825904]
[1749399436442,6.47,2521.1,2521.0,19.9665692]
[1749399436844,6.47,2521.1,2521.0,16.0]
[1749399438147,8.145,2521.1,2521.0,16.0]
[1749399441003,8.145,2521.1,2521.0,19.96667988]
[1749399442669,1.675,2521.1,2521.0,19.96667988]
[1749399442869,8.138,2521.1,2521.0,19.96667988]
[1749399443426,0.8058,2521.5,2521.1,16.0]
[1749399443626,8.137,2521.4,2521.1,27.24344242]
[1749399443791,8.137,2521.4,2521.2,16.0]
[1749399444711,8.137,2521.4,2520.9,3.96680171]
[1749399444712,0.8098,2521.3,2520.9,3.96673064]
[1749399444933,10.43140114,2521.2,2520.8,16.0]
[1749399445419,6.465,2521.2,2520.8,3.96697885]
[1749399446277,6.465,2521.2,2520.9,16.0]
[1749399448823,8.14,2521.1,2520.9,16.0]
[1749399449036,8.14,2521.1,2520.9,19.96682194]
[1749399449520,8.14,2521.1,2520.9,16.0]
[1749399451219,12.10660335,2521.1,2520.7,16.0]
[1749399451404,0.7577,2521.0,2520.7,16.0]
[1749399451725,6.464,2520.9,2520.7,16.0]
[1749399452111,6.464,2520.9,2520.6,16.0]
[1749399453725,7.75025021,2520.9,2520.5,19.96737927]
[1749399454313,6.464,2520.9,2520.5,19.96737927]
[1749399454521,6.464,2520.9,2520.6,3.96730875]
[1749399454830,6.464,2520.9,2520.5,19.96744681]
[1749399455033,4.72906514,2520.8,2520.4,16.0]
[1749399455337,6.465,2520.7,2520.1,4.47796088]
[1749399455515,10.43215483,2520.7,2520.2,19.96785551]
[1749399455688,6.465,2520.7,2520.4,16.0]
[1749399455883,6.465,2520.7,2520.4,19.96759846]
[1749399456722,6.465,2520.7,2520.5,3.96742525]
[1749399456940,3.96638692,2521.2,2520.8,16.0]
[1749399457251,0.762,2521.3,2520.8,25.49013623]
[1749399457252,8.139,2521.1,2520.8,25.49013623]
[1749399457402,8.139,2521.1,2520.8,21.52323951]
[1749399457602,12.10552464,2521.1,2520.6,25.4904655]
[1749399457926,8.139,2521.1,2520.7,3.96714834]
[1749399458100,8.139,2521.0,2520.8,21.52323951]
[1749399458432,1.674,2521.0,2520.9,19.96683724]
[1749399458633,17.9307,2521.5,2521.2,3.96636522]
[1749399458831,17.9307,2521.5,2521.3,21.52323951]
[1749399459133,8.141,2521.4,2521.3,16.0]
[1749399461038,8.139,2521.4,2521.3,25.48944741]
[1749399461238,17.141,2521.5,2521.4,16.0]
[1749399461444,25.28,2521.5,2521.4,16.0]
[1749399461610,25.283,2521.5,2521.4,16.0]
[1749399462020,18.815,2521.5,2521.4,16.0]
[1749399462230,17.141,2521.5,2521.4,19.9660506]
[1749399462432,25.282,2521.5,2521.4,16.0]
[1749399463565,25.282,2521.5,2521.4,19.9660506]
[1749399463852,25.282,2521.5,2521.4,16.0]
[1749399464357,18.815,2521.5,2521.4,19.9660506]
[1749399464573,25.28,2521.5,2521.4,19.9660506]
[1749399464714,17.141,2521.5,2521.4,19.9660506]
[1749399464919,25.281,2521.5,2521.4,20.7808506]
[1749399465644,17.141,2521.5,2521.4,20.7808506]
[1749399465954,0.7704,2522.4,2521.9,16.0]
[1749399466257,8.145,2522.3,2522.1,5.52323951]
[1749399466558,8.145,2522.3,2522.1,21.52323951]
[1749399466559,4.0,2522.2,2522.1,21.52323951]
[1749399466859,6.471,2522.2,2522.1,21.52323951]
[1749399467064,1.674,2522.3,2522.2,19.96479264]
[1749399467357,1.674,2522.3,2522.1,9.48813144]
[1749399467358,8.146,2522.3,2522.1,9.48813144]
[1749399467864,1.674,2522.3,2522.2,16.0]
[1749399468025,8.147,2522.3,2522.2,16.0]
[1749399468623,17.141,2522.6,2522.4,16.0]
[1749399468865,8.146,2522.5,2522.4,16.0]
[1749399470048,8.146,2522.5,2522.3,16.0]
[1749399470248,17.141,2522.6,2522.5,3.96432111]
[1749399470475,17.141,2522.6,2522.4,3.96435923]
[1749399470675,18.815,2522.6,2522.4,3.96435923]
[1749399470974,6.469,2522.5,2522.4,3.96435923]
[1749399471471,17.141,2522.6,2522.5,3.96432111]
[1749399471634,25.282,2522.6,2522.5,3.96432111]
[1749399471834,25.282,2522.6,2522.4,3.96440871]
[1749399473258,25.282,2522.6,2522.3,20.75880614]
[1749399474566,25.282,2522.6,2522.4,3.96439475]
[1749399474966,25.282,2522.6,2522.3,20.75878677]
[1749399475151,25.282,2522.6,2522.4,3.96439563]
[1749399475480,25.282,2522.6,2522.3,20.75875653]
[1749399475781,25.282,2522.6,2522.4,3.9644738]
[1749399478495,25.282,2522.6,2522.5,3.96432111]
[1749399479279,25.282,2522.6,2522.4,3.96437443]
[1749399479479,17.141,2522.6,2522.4,3.96437443]
[1749399479675,8.144,2522.5,2522.4,19.96437443]
[1749399479879,17.141,2522.6,2522.5,3.96432111]
[1749399480079,25.284,2522.6,2522.5,3.96432111]
[1749399481084,25.285,2522.6,2522.5,19.96432111]
[1749399482987,25.285,2522.6,2522.5,16.0]
[1749399483294,25.285,2522.6,2522.5,19.96432111]
[1749399484145,18.817,2522.6,2522.5,19.96432111]
[1749399484347,25.282,2522.6,2522.5,19.96432111]
[1749399487786,8.141,2522.6,2522.5,19.96432111]
[1749399488412,8.9199,2522.6,2522.5,16.0]
[1749399488788,14.17245821,2522.6,2522.5,16.0]
[1749399489107,0.7789,2522.2,2521.9,0.39176018]
[1749399489395,0.7789,2522.2,2522.0,19.96510705]
[1749399489396,6.471,2522.1,2522.0,19.96510705]
[1749399489552,6.47,2522.2,2522.1,3.96494984]
[1749399489751,6.47,2522.2,2522.1,19.96494984]
[1749399490250,6.47,2522.2,2522.1,16.0]
[1749399490959,7.2489,2522.2,2522.1,16.0]
[1749399492660,6.47,2522.2,2522.1,16.0]
[1749399492856,6.47,2522.2,2522.1,19.96494984]
[1749399493085,0.7923,2522.6,2522.2,16.0]
[1749399493415,0.7923,2522.8,2522.5,16.0]
[1749399493570,8.156,2522.7,2522.5,19.96431802]
[1749399493762,8.156,2522.7,2522.5,25.48240079]
[1749399494799,8.156,2522.7,2522.5,21.51808277]
[1749399494986,13.41122663,2522.7,2522.2,19.96472281]
[1749399495300,13.41122663,2522.7,2522.3,16.0]
[1749399495469,13.41122663,2522.7,2522.2,19.96472281]
[1749399495795,12.12002636,2522.7,2522.3,16.0]
[1749399495983,3.96419382,2522.6,2522.1,9.48294574]
[1749399496186,0.7923,2522.4,2522.2,16.0]
[1749399496372,6.477,2522.3,2522.0,16.0]
[1749399496574,6.477,2522.3,2522.2,16.0]
[1749399496776,6.477,2522.3,2522.0,19.96504872]
[1749399496979,6.477,2522.3,2522.2,16.0]
[1749399498504,0.7923,2522.8,2522.2,0.7648]
[1749399498730,8.153,2522.7,2522.6,19.96404719]
[1749399499204,8.153,2522.7,2522.4,19.96439029]
[1749399499420,8.153,2522.7,2522.4,16.0]
[1749399499563,0.7923,2522.6,2522.4,16.0]
[1749399499791,6.48,2522.5,2522.4,16.0]
[1749399501111,6.48,2522.5,2522.4,19.96447827]
[1749399501321,6.48,2522.5,2522.4,16.0]
[1749399502435,6.48,2522.5,2522.4,19.96447827]
[1749399509240,0.7897,2523.1,2522.6,19.96416395]
[1749399509423,1.678,2523.0,2522.9,19.96369257]
[1749399509629,8.151,2523.0,2522.9,19.96369257]
[1749399510119,0.7897,2523.1,2522.9,19.96369257]
[1749399510120,0.7897,2523.1,2522.9,3.96369257]
[1749399510327,8.15,2523.0,2522.9,3.96369257]
[1749399510740,1.678,2523.0,2522.9,3.96369257]
[1749399510902,8.149,2523.0,2522.8,3.96376655]
[1749399511106,8.149,2522.9,2522.8,19.96376655]
[1749399512041,8.149,2522.9,2522.8,16.0]
[1749399512640,8.149,2522.9,2522.8,19.96384969]
[1749399514522,8.145,2522.9,2522.8,19.96384969]
[1749399515528,0.7897,2523.1,2522.9,3.96361382]
[1749399515853,8.144,2523.0,2522.9,3.96361382]
[1749399516323,8.143,2523.0,2522.9,3.96369257]
[1749399516725,8.143,2523.0,2522.8,19.96380599]
[1749399517111,8.142,2522.9,2522.8,19.96380599]
[1749399517548,0.7897,2523.1,2522.8,19.96380599]
[1749399517751,8.142,2523.0,2522.8,19.96380599]
[1749399518407,8.80866667,2523.0,2522.8,16.0]
[1749399519452,8.80866667,2523.0,2522.8,19.96383721]
[1749399519654,8.80866667,2523.0,2522.8,16.0]
[1749399521311,8.80866667,2523.0,2522.8,19.96384873]
[1749399521514,8.80866667,2523.0,2522.8,19.96384916]
[1749399521719,8.80866667,2523.0,2522.8,16.0]
[1749399521916,0.66666667,2523.0,2522.8,19.96376539]
[1749399522154,8.137,2522.9,2522.8,19.96376539]
[1749399522359,8.137,2522.9,2522.8,16.0]
[1749399522561,8.137,2522.9,2522.8,19.96384969]
[1749399522863,8.137,2522.9,2522.8,16.0]
[1749399523562,8.137,2522.9,2522.8,19.96384969]
[1749399524065,8.80166667,2523.0,2522.9,3.96369257]
[1749399525730,0.66666667,2523.0,2522.9,9.47782114]
[1749399526227,8.80166667,2523.0,2522.9,25.47782114]
[1749399529744,0.66666667,2523.0,2522.9,25.47782114]
[1749399529951,8.79766667,2523.0,2522.9,25.47782114]
[1749399530275,0.66666667,2523.0,2522.9,25.47782114]
[1749399530646,0.66666667,2523.0,2522.9,30.98922114]
[1749399532283,0.66666667,2523.0,2522.9,31.49922114]
[1749399535742,0.66666667,2523.0,2522.9,37.95122114]
[1749399541100,0.15982193,2524.5,2524.1,3.96167673]
[1749399541301,0.15982193,2524.5,2524.2,16.0]